lending/lending_fUSD_20240908
["ID","MTS","AMOUNT","RATE_DAILY","PERIOD"]
[337534566,1725774638683,-236.37398188,0.00014233,2]
[337534567,1725774638692,-152.0,0.00014276,9]
[337534568,1725774638701,-152.0,0.00014345,10]
[337534569,1725774638710,-152.0,0.00014414,11]
[337534570,1725774638720,-236.37398188,0.00014456,2]
[337534571,1725774638729,-152.0,0.00014483,12]
[337534572,1725774638739,-152.0,0.00014552,13]
[337534573,1725774638748,-1000.0,0.00014605,2]
[337534574,1725774638757,-152.0,0.00014621,14]
[337534575,1725774638767,-236.37398188,0.00014678,2]
[337534576,1725774638776,-152.0,0.0001469,15]
[337534577,1725774638785,-222.88946008,0.00014728,2]
[337534578,1725774638794,-152.0,0.00014759,16]
[337534579,1725774638803,-210.85,0.00014762,2]
[337534580,1725774638812,-784.09849388,0.0001477,3]
[337534581,1725774638821,-215172.4326612,0.0001478,2]
[337534582,1725774638882,-2510.72,0.0001478,2]
[337534583,1725774638893,-12294.39456971,0.0001478,2]
[337534591,1725774640230,-6744.16366277,0.0001478,2]
[337534662,1725774643196,-256.46,0.0001478,2]
[337534663,1725774643207,-1249.688,0.0001478,2]
[337534667,1725774643409,-1389.0,0.0001478,2]
[337534672,1725774646261,-30584.47332752,0.0001478,2]
[337534673,1725774665900,1210.29,0.00025,60]
[337534680,1725774808626,209.89,0.00012016,2]
[337534687,1725775140724,157.97,0.00010959,2]
[337534700,1725775325958,211.65,0.00011702,2]
[337534702,1725775730852,151.77,0.00010959,2]
[337534724,1725775832358,-250.0,0.0001298,2]
[337534725,1725775832367,-51.60230432,0.00013003,2]
[337534726,1725775832465,-11786.6630655,0.00013003,2]
[337534727,1725775832476,-12061.73463018,0.00013003,2]
[337534728,1725775832485,-153.32,0.0001304,2]
[337534729,1725775832494,-250.0,0.00013079,2]
[337534730,1725775832505,-150.0,0.00013079,2]
[337534731,1725775832514,-144.13825688,0.00013168,2]
[337534732,1725775832574,-45.01174312,0.00013168,2]
[337534733,1725775832583,-179.82332751,0.00013215,2]
[337534734,1725775832593,-319.7420093,0.00013269,2]
[337534735,1725775832605,-280.2579907,0.00013269,2]
[337534736,1725775832616,-138.28208603,0.00013315,2]
[337534737,1725775832627,-418.17284334,0.00013315,2]
[337534752,1725775838302,-4207.64,0.00013033,2]
[337534753,1725775838312,-673.28507063,0.00013315,2]
[337534754,1725775838323,-1822.6175,0.00013542,2]
[337534755,1725775838332,-167.4,0.00013688,2]
[337534756,1725775838343,-752.01,0.00013688,2]
[337534757,1725775838352,-499.99,0.00013695,2]
[337534758,1725775838362,-152.42,0.00013699,2]
[337534759,1725775838371,-400.0,0.00013764,2]
[337534760,1725775838380,-286.51,0.00013862,2]
[337534761,1725775838389,-152.0,0.00013889,3]
[337534762,1725775838399,-211.65,0.00013966,2]
[337534763,1725775838409,-152.0,0.00013984,4]
[337534764,1725775838418,-150.0,0.00013989,2]
[337534765,1725775838427,-369.7,0.0001399,3]
[337534766,1725775838437,-184.85,0.0001399,3]
[337534767,1725775838446,-5563.80336324,0.0001399,3]
[337534768,1725775838455,-554.55,0.0001399,3]
[337534769,1725775838465,-927.30056054,0.00013993,3]
[337534770,1725775838474,-1000.0,0.00013998,2]
[337534771,1725775838483,-344157.68,0.00014,2]
[337534772,1725775838493,-512.75,0.00014,2]
[337534773,1725775838502,-6108.5889,0.00014003,2]
[337534774,1725775838511,-152.0,0.0001408,5]
[337534775,1725775838521,-152.0,0.00014176,6]
[337534776,1725775838530,-152.0,0.00014272,7]
[337534777,1725775838539,-152.0,0.00014367,8]
[337534778,1725775838549,-375.88012383,0.00014451,2]
[337534779,1725775838561,-152.0,0.00014463,9]
[337534780,1725775838570,-1000.0,0.00014498,2]
[337534781,1725775838580,-152.0,0.00014559,10]
[337534782,1725775838589,-158.69,0.00014583,2]
[337534783,1725775838598,-152.0,0.00014655,11]
[337534784,1725775838609,-152.0,0.0001475,12]
[337534785,1725775838619,-3959.66854075,0.0001478,2]
[337534787,1725775838628,-550.06351,0.0001478,2]
[337534788,1725775838638,-927.30056054,0.00014792,3]
[337534790,1725775838648,-226.0,0.000148,2]
[337534792,1725775838657,-185.16,0.00014802,2]
[337534794,1725775838666,-152.0,0.00014846,13]
[337534796,1725775838675,-927.30056054,0.0001489,3]
[337534798,1725775838685,-2725.0771,0.000149,2]
[337534800,1725775838694,-328.07416117,0.000149,2]
[337534802,1725775838703,-176.22845627,0.000149,2]
[337534805,1725775838714,-359.0,0.000149,2]
[337534807,1725775838723,-5934.73016294,0.000149,2]
[337534808,1725775838733,-600.0,0.00014928,2]
[337534810,1725775838742,-152.0,0.00014942,14]
[337534813,1725775838752,-500.35027168,0.00014973,2]
[337534815,1725775838761,-500.0,0.00014973,2]
[337534817,1725775838770,-927.30056054,0.0001498,3]
[337534819,1725775838779,-8345.70504486,0.0001498,3]
[337534820,1725775838789,-666.40463021,0.0001498,3]
[337534822,1725775838798,-666.40463021,0.00014983,3]
[337534824,1725775838808,-2665.61852084,0.0001499,3]
[337534826,1725775838817,-6664.0463021,0.0001499,3]
[337534828,1725775838826,-3649.2880313,0.00014993,2]
[337534830,1725775838836,-291.888035,0.00014993,2]
[337534832,1725775838845,-7978.14508982,0.00014993,2]
[337534835,1725775838858,-3296.09562028,0.00014993,2]
[337534836,1725775838867,-503.7073138,0.00014993,2]
[337534838,1725775838876,-1798.0494881,0.00014993,2]
[337534841,1725775838886,-191.14002475,0.00014999,2]
[337534843,1725775838896,-500.0,0.00014999,2]
[337534845,1725775838907,-332.02068214,0.00014999,2]
[337534847,1725775838917,-500.0,0.00014999,2]
[337534849,1725775838927,-500.0,0.00014999,2]
[337534851,1725775838937,-470.94279254,0.00014999,2]
[337534853,1725775838947,-580.32321266,0.00014999,2]
[337534855,1725775838956,-218.99364361,0.00014999,2]
[337534857,1725775838965,-605.0,0.00015,2]
[337534859,1725775838974,-1403.72722212,0.00015,2]
[337534869,1725775840449,-1099.200747,0.000147,2]
[337534870,1725775840459,-8432.04374986,0.00015,2]
[337534871,1725775840471,-55669.48026404,0.00015,2]
[337534872,1725775840483,-415.1,0.00015,2]
[337534873,1725775840573,-20106.592846,0.00015,2]
[337534874,1725775840585,-516.682086,0.00015,2]
[337534875,1725775840620,-74117.41514106,0.00015,2]
[337534876,1725775840630,-35360.75104391,0.00015,2]
[337534877,1725775840642,-10795.95706516,0.00015,2]
[337534878,1725775840654,-2834.54999994,0.00015,2]
[337534879,1725775840676,-1707.93100633,0.00015,2]
[337534880,1725775840687,-54434.82433093,0.00015,2]
[337534881,1725775840699,-251.44736667,0.00015,2]
[337534882,1725775840731,-661.0,0.00015,2]
[337534883,1725775840743,-1621.08858159,0.00015,2]
[337534884,1725775840754,-703.655,0.00015,2]
[337534885,1725775840766,-8822.11562724,0.00015,2]
[337534886,1725775840779,-4307.56043718,0.00015,2]
[337534887,1725775840815,-1944.52069657,0.00015,2]
[337534888,1725775840827,-254.77066555,0.00015,2]
[337534893,1725775843294,-767.00700092,0.00015,2]
[337534894,1725775843305,-707.3898016,0.00015,2]
[337534895,1725775843317,-430.65367495,0.00015,2]
[337534896,1725775843377,-2126.874996,0.00015,2]
[337534897,1725775843389,-1388.82081271,0.00015,2]
[337534898,1725775843400,-588.90780569,0.00015,2]
[337534899,1725775843576,-3079.99995,0.00015,2]
[337534900,1725775843589,-394.58101345,0.00015,2]
[337534901,1725775843703,-7707.22865925,0.00015,2]
[337534902,1725775843714,-296.13443335,0.00015,2]
[337534903,1725775843725,-640.224,0.00015,2]
[337534904,1725775843736,-5626.523833,0.00015,2]
[337534905,1725775843774,-305512.84010228,0.00015,2]
[337534906,1725775843785,-1732.88242047,0.00015,2]
[337534907,1725775843798,-2421.6,0.00015,2]
[337534908,1725775843810,-604.07802196,0.00015,2]
[337534909,1725775843822,-1311.53163983,0.00015,2]
[337534927,1725775846345,-334.68999,0.000139,2]
[337534938,1725775846620,-5224.31001,0.000139,2]
[337534939,1725775846630,-500.0,0.00014973,2]
[337534940,1725775846640,-22416.60999,0.00015,2]
[337534942,1725775860177,750.0,0.00011,2]
[337534943,1725775943267,202.13,0.00012349,2]
[337534948,1725776517285,215.31,0.0001188,2]
[337534949,1725776761123,275.78,0.00010959,2]
[337534950,1725776771823,229.82,0.00010959,2]
[337534951,1725776782225,191.52,0.00010959,2]
[337534952,1725776792870,159.6,0.00010959,2]
[337534953,1725776803402,798.0,0.00010959,2]
[337534954,1725776851696,158.33,0.00010959,2]
[337534958,1725777002075,285.42928646,0.00010959,2]
[337534959,1725777031374,-263.59098676,0.000129,2]
[337534960,1725777031383,-800.0,0.00013,2]
[337534962,1725777031392,-129.61846234,0.00013,2]
[337534964,1725777031403,-7323.00633411,0.00013,2]
[337534966,1725777031414,-2587.71929825,0.00013,2]
[337534967,1725777031490,-1806.20900127,0.00013,2]
[337534968,1725777031504,-35512.62965987,0.00013,2]
[337534969,1725777031517,-2000.37034013,0.00013,2]
[337534974,1725777031716,-2096.01861641,0.00013,2]
[337534975,1725777031784,-9784.12841718,0.00013,2]
[337534976,1725777037447,-1691.16040144,0.00013,2]
[337534977,1725777037460,-54635.59999998,0.00013,2]
[337534978,1725777037524,-123729.55673392,0.00013,2]
[337535298,1725777127378,253.34,0.00011624,2]
[337535305,1725777364225,222.03,0.00010959,2]
[337535310,1725777622486,240.67,0.00011431,2]
[337535312,1725777667144,750.0,0.00011,2]
[337535314,1725777939789,157.97,0.00010959,2]
[337535315,1725777941815,407.45272003,0.00027,120]
[337535321,1725778134105,-322.33296472,0.00012709,2]
[337535324,1725778195333,228.63,0.00011146,2]
[337535338,1725778231747,-185.16,0.0001274,2]
[337535339,1725778231756,-469.92169987,0.000129,2]
[337535340,1725778231768,-189.30659344,0.000129,2]
[337535341,1725778231777,-162.09702614,0.000129,2]
[337535342,1725778231787,-809.94895666,0.00013,2]
[337535343,1725778231799,-1184.24886143,0.00013,2]
[337535344,1725778231893,-3870.22387669,0.00013,2]
[337535351,1725778237925,-2880.49261151,0.00013,2]
[337535419,1725778239947,-7229.20132646,0.00013,2]
[337536115,1725778480832,150.0,0.0001224,2]
[337536116,1725778485432,250.0,0.0001224,2]
[337536138,1725778511972,250.0,0.00012319,2]
[337536139,1725778582668,3300.5,0.00012276,2]
[337536140,1725778599470,153.32,0.00012339,2]
[337536141,1725778684468,226.08,0.00010403,2]
[337536142,1725778684671,226.08,0.00012667,2]
[337536143,1725778698992,189.15,0.00012334,2]
[337536147,1725778765813,151.77,0.00010959,2]
[337536149,1725778821542,3000.0,0.00027,120]
[337536150,1725778834526,167.4,0.00012525,2]
[337536163,1725779268754,214.91,0.00011148,2]
[337536164,1725779302908,-1493.19429232,0.00012736,2]
[337536165,1725779412299,1329.782875,0.00012661,2]
[337536166,1725779432171,-799.26,0.000128,2]
[337536167,1725779432182,-321.35952284,0.000129,2]
[337536168,1725779432203,-593.30546397,0.000129,2]
[337536169,1725779432213,-1100.0,0.0001299,2]
[337536170,1725779432224,-185.16,0.00012998,2]
[337536171,1725779432234,-150.0,0.00012998,2]
[337536172,1725779432243,-300.0,0.00012998,2]
[337536173,1725779432252,-186.34067264,0.00012999,2]
[337536174,1725779432262,-500.0,0.00012999,2]
[337536175,1725779432272,-349.73015402,0.00012999,2]
[337536176,1725779432281,-500.0,0.00012999,2]
[337536177,1725779432292,-500.0,0.00012999,2]
[337536178,1725779432302,-203.33216918,0.00012999,2]
[337536179,1725779437945,-296.66783082,0.00012999,2]
[337536180,1725779437955,-500.0,0.00012999,2]
[337536181,1725779437966,-500.0,0.00012999,2]
[337536182,1725779437976,-385.66488413,0.00012999,2]
[337536183,1725779437986,-500.0,0.00012999,2]
[337536184,1725779437995,-500.0,0.00012999,2]
[337536185,1725779438004,-259.5376387,0.00012999,2]
[337536186,1725779438063,-240.4623613,0.00012999,2]
[337536187,1725779438072,-500.0,0.00012999,2]
[337536188,1725779438082,-377.45936079,0.00012999,2]
[337536203,1725779438325,-122.54063921,0.00012999,2]
[337536205,1725779438334,-409.26357244,0.00012999,2]
[337536207,1725779438343,-2087.50026668,0.00013,2]
[337536209,1725779438354,-825.25836951,0.00013,2]
[337536264,1725779439913,-690.92999997,0.00013,2]
[337536265,1725779439977,-919.94396209,0.00013,2]
[337536266,1725779439989,-952.65957156,0.00013,2]
[337536267,1725779440116,-0.22700735,0.00013,2]
[337536268,1725779440127,-556.77712452,0.00013,2]
[337536282,1725779443986,-6111.43745869,0.00013,2]
[337536291,1725779446221,-1000.0,0.00013,2]
[337536292,1725779472888,750.0,0.00011,2]
[337536293,1725779587418,211.17651185,0.00012695,2]
[337536294,1725779791771,159.71,0.00010959,2]
[337536295,1725779814756,215.59,0.00011333,2]
[337536296,1725780005183,-185.16123432,0.0001274,2]
[337536297,1725780005209,-914.99548784,0.000128,2]
[337536298,1725780005234,-162.09702614,0.000129,2]
[337536299,1725780005260,-533.9749176,0.000129,2]
[337536300,1725780005286,-500.0,0.00012973,2]
[337536301,1725780005313,-300.0,0.00012998,2]
[337536302,1725780005341,-500.0,0.00012999,2]
[337536303,1725780005368,-152.67589979,0.00012999,2]
[337536304,1725780005394,-433.91825383,0.00012999,2]
[337536305,1725780005421,-500.0,0.00012999,2]
[337536306,1725780005446,-470.09436635,0.00012999,2]
[337536307,1725780005472,-150.0,0.00012999,2]
[337536308,1725780005500,-95197.08281413,0.00013,2]
[337536309,1725780033450,1605.04,0.00027,120]
[337536310,1725780051986,-100000.0,0.00013,2]
[337536312,1725780118911,-211.17651186,0.00012761,2]
[337536313,1725780118937,-1040.28406,0.0001287,2]
[337536314,1725780118967,-300.0,0.00012999,2]
[337536315,1725780118992,-150.0,0.00012999,2]
[337536316,1725780119018,-300.0,0.00012999,2]
[337536317,1725780119046,-97998.53942814,0.00013,2]
[337536318,1725780197571,707.76,0.00011982,2]
[337536319,1725780233639,227.09,0.00011982,2]
[337536320,1725780239486,250.0,0.00011983,2]
[337536321,1725780266291,189.15,0.00011966,2]
[337536322,1725780270069,154.0,0.00011966,2]
[337536323,1725780292480,250.0,0.00011966,2]
[337536324,1725780316798,150.0,0.00012663,2]
[337536325,1725780340738,215.7,0.00010026,2]
[337536326,1725780340960,215.7,0.0001229,2]
[337536327,1725780376924,150.0,0.00012665,2]
[337536328,1725780404090,1703.51,0.00011909,2]
[337536329,1725780422154,210.92,0.00010959,2]
[337536330,1725780440968,1484.61494227,0.00015,30]
[337536332,1725780483818,215.4,0.00011901,2]
[337536334,1725780492348,14751.9905,0.0001267,2]
[337536340,1725780523617,402.39,0.00011901,2]
[337536349,1725780591047,1852.42,0.00011921,2]
[337536350,1725780621427,23900.0,0.00011921,2]
[337536356,1725780632117,-150.0,0.0001273,2]
[337536357,1725780632127,-565.14,0.00012803,2]
[337536358,1725780632306,-565.14,0.00012806,2]
[337536359,1725780632338,-565.14,0.0001281,2]
[337536360,1725780632347,-565.14,0.00012813,2]
[337536361,1725780632357,-565.14,0.00012817,2]
[337536362,1725780632367,-150.0,0.00012818,2]
[337536363,1725780632376,-565.14,0.0001282,2]
[337536364,1725780632386,-499.99,0.0001282,2]
[337536365,1725780632395,-4017.55803443,0.0001282,2]
[337536367,1725780632424,-8866.18196557,0.0001282,2]
[337536368,1725780632432,-2283.94835179,0.0001282,2]
[337536369,1725780632486,-294.15884645,0.0001282,2]
[337536371,1725780638034,-540.32280176,0.0001282,2]
[337536372,1725780638044,-4509.53,0.0001282,2]
[337536373,1725780638052,-979.48,0.0001282,2]
[337536374,1725780638062,-299.99,0.0001282,2]
[337536375,1725780638071,-565.14,0.00012823,2]
[337536376,1725780638080,-565.14,0.00012827,2]
[337536377,1725780638089,-360.22,0.00012827,2]
[337536378,1725780638103,-150.99,0.00012827,2]
[337536379,1725780638112,-150.99,0.00012827,2]
[337536380,1725780638121,-150.99,0.00012827,2]
[337536381,1725780638131,-4687.63,0.00012827,2]
[337536382,1725780638142,-565.14,0.0001283,2]
[337536383,1725780638157,-565.14,0.00012833,2]
[337536384,1725780638169,-565.14,0.00012837,2]
[337536385,1725780638180,-565.14,0.0001284,2]
[337536386,1725780638191,-565.14,0.00012844,2]
[337536387,1725780638200,-565.14,0.00012847,2]
[337536388,1725780638209,-565.14,0.0001285,2]
[337536389,1725780638219,-565.14,0.00012854,2]
[337536390,1725780638228,-565.14,0.00012857,2]
[337536391,1725780638238,-565.14,0.0001286,2]
[337536392,1725780638247,-565.14,0.00012864,2]
[337536393,1725780638256,-565.14,0.00012867,2]
[337536394,1725780638266,-643.37484,0.0001287,2]
[337536395,1725780638275,-919.13307551,0.000129,2]
[337536396,1725780638284,-406.60485255,0.000129,2]
[337536397,1725780638295,-1652.94954745,0.000129,2]
[337536398,1725780638304,-162.09702614,0.0001299,2]
[337536399,1725780638314,-151.6,0.0001299,2]
[337536400,1725780638323,-138.46915261,0.00012999,2]
[337536401,1725780638426,-30.51011665,0.00012999,2]
[337536402,1725780638436,-431.03977097,0.00012999,2]
[337536403,1725780638446,-376.18498713,0.00012999,2]
[337536404,1725780638455,-238266.0624963,0.00013,2]
[337536405,1725780638465,-800.0,0.00013,2]
[337536406,1725780638474,-1000.0,0.00013,2]
[337536407,1725780638483,-1000.0,0.00013,2]
[337536408,1725780638493,-1000.0,0.00013,2]
[337536409,1725780638502,-1000.0,0.00013,2]
[337536410,1725780638511,-1000.0,0.00013,2]
[337536411,1725780638520,-1000.0,0.00013,2]
[337536412,1725780638529,-1000.0,0.00013,2]
[337536413,1725780638539,-1000.0,0.00013,2]
[337536414,1725780638548,-1000.0,0.00013,2]
[337536416,1725780638557,-1000.0,0.00013,2]
[337536418,1725780638567,-171.32085191,0.00013,2]
[337536420,1725780638576,-1788846.1116082,0.00013,2]
[337536422,1725780638585,-377.137416,0.00013,2]
[337536424,1725780638594,-10006.80793206,0.00013,2]
[337536425,1725780638603,-297.19026503,0.00013,2]
[337536427,1725780638613,-176.05001171,0.00013,2]
[337536429,1725780638623,-3542.815103,0.00013083,2]
[337536431,1725780638632,-919.13307549,0.00013122,2]
[337536433,1725780638642,-166.2,0.00013127,2]
[337536435,1725780638656,-1000.0,0.00013166,2]
[337536437,1725780638666,-152.056672,0.00013187,2]
[337536439,1725780638675,-151.0,0.00013187,2]
[337536441,1725780638685,-151.0,0.00013187,2]
[337536443,1725780638695,-151.0,0.00013187,2]
[337536445,1725780638705,-151.0,0.00013187,2]
[337536447,1725780638715,-232.618088,0.00013187,2]
[337536449,1725780638725,-151.0,0.00013187,2]
[337536451,1725780638735,-151.0,0.00013187,2]
[337536453,1725780638744,-229.21,0.00013215,2]
[337536455,1725780638753,-158.46,0.00013219,2]
[337536457,1725780638763,-159.09,0.00013239,2]
[337536459,1725780638772,-159.09,0.00013255,2]
[337536461,1725780638782,-159.09,0.00013272,2]
[337536463,1725780638792,-159.09,0.00013288,2]
[337536466,1725780638802,-150.0,0.000133,2]
[337536468,1725780638812,-150.0,0.000133,2]
[337536470,1725780638821,-150.0,0.000133,2]
[337536471,1725780638830,-150.35,0.000133,2]
[337536473,1725780638840,-159.09,0.00013305,2]
[337536475,1725780638850,-919.13307549,0.00013344,2]
[337536478,1725780638859,-150.0,0.000134,2]
[337536479,1725780638869,-150.0,0.000134,2]
[337536481,1725780638879,-150.0,0.000135,2]
[337536483,1725780638888,-169.00257404,0.000135,2]
[337536485,1725780638899,-795.0,0.00013504,2]
[337536488,1725780638911,-919.13307549,0.00013567,2]
[337536490,1725780638921,-152.42,0.00013699,2]
[337536492,1725780638931,-919.13307549,0.00013789,2]
[337536494,1725780638942,-151.0,0.00013789,2]
[337536496,1725780638951,-151.0,0.00013789,2]
[337536498,1725780638961,-717.891824,0.00013789,2]
[337536500,1725780638970,-717.891824,0.00013789,2]
[337536502,1725780638980,-4056.90740769,0.0001379,2]
[337536504,1725780638989,-151.0,0.0001379,2]
[337536506,1725780638999,-151.0,0.0001379,2]
[337536508,1725780639009,-151.0,0.0001379,2]
[337536510,1725780639018,-151.0,0.0001379,2]
[337536512,1725780639027,-151.0,0.0001379,2]
[337536514,1725780639037,-151.0,0.0001379,2]
[337536516,1725780639047,-151.0,0.0001379,2]
[337536518,1725780639056,-151.0,0.0001379,2]
[337536519,1725780639065,-174.110054,0.0001379,2]
[337536521,1725780639074,-151.0,0.0001379,2]
[337536523,1725780639084,-151.0,0.0001379,2]
[337536525,1725780639094,-151.0,0.0001379,2]
[337536527,1725780639107,-232.284669,0.0001379,2]
[337536529,1725780639116,-232.284669,0.0001379,2]
[337536531,1725780639125,-151.0,0.0001379,2]
[337536533,1725780639134,-151.0,0.0001379,2]
[337536535,1725780639145,-151.0,0.0001379,2]
[337536537,1725780639155,-151.0,0.0001379,2]
[337536539,1725780639164,-5488.703912,0.0001379,2]
[337536541,1725780639175,-5488.703912,0.0001379,2]
[337536543,1725780639185,-225.105395,0.0001379,2]
[337536545,1725780639196,-151.0,0.0001379,2]
[337536547,1725780639205,-225.105395,0.0001379,2]
[337536549,1725780639214,-151.0,0.0001379,2]
[337536551,1725780639224,-151.0,0.0001379,2]
[337536553,1725780639233,-154.001137,0.0001379,2]
[337536555,1725780639242,-151.0,0.000138,2]
[337536557,1725780639252,-151.0,0.000138,2]
[337536559,1725780639261,-151.0,0.000138,2]
[337536561,1725780639271,-151.0,0.000138,2]
[337536563,1725780639280,-151.0,0.000138,2]
[337536565,1725780639289,-414.825166,0.000138,2]
[337536567,1725780639299,-414.825166,0.000138,2]
[337536569,1725780639308,-173.017963,0.000138,2]
[337536571,1725780639318,-173.017963,0.000138,2]
[337536573,1725780639327,-188.193261,0.000138,2]
[337536575,1725780639336,-188.193261,0.000138,2]
[337536577,1725780639345,-151.0,0.000138,2]
[337536578,1725780639354,-151.0,0.000138,2]
[337536580,1725780639365,-151.0,0.000138,2]
[337536582,1725780639374,-151.0,0.000138,2]
[337536584,1725780639383,-151.0,0.000138,2]
[337536586,1725780639392,-243.996416,0.000138,2]
[337536588,1725780639403,-151.0,0.000138,2]
[337536590,1725780639412,-243.996416,0.000138,2]
[337536592,1725780639421,-151.0,0.000138,2]
[337536595,1725780639430,-151.0,0.000138,2]
[337536597,1725780639441,-13221.7377816,0.000138,3]
[337536599,1725780639450,-2197.461674,0.000138,2]
[337536601,1725780639459,-207.18361201,0.000138,2]
[337536603,1725780639469,-17848.11604,0.000139,3]
[337536605,1725780639478,-5488.703912,0.000139,2]
[337536607,1725780639487,-5488.703912,0.000139,2]
[337536608,1725780639497,-225.105395,0.000139,2]
[337536610,1725780639507,-151.0,0.000139,2]
[337536612,1725780639517,-225.105395,0.000139,2]
[337536614,1725780639526,-151.0,0.000139,2]
[337536616,1725780639536,-151.0,0.000139,2]
[337536618,1725780639545,-152.0,0.00013949,3]
[337536620,1725780639555,-2819.4627181,0.00013973,2]
[337536622,1725780639564,-919.13307549,0.00014011,2]
[337536624,1725780639574,-2819.4627181,0.00014027,2]
[337536626,1725780639583,-932.31,0.00014068,2]
[337536628,1725780639592,-155.75713008,0.00014082,2]
[337536630,1725780639602,-151.0,0.00014082,2]
[337536631,1725780639611,-151.0,0.00014082,2]
[337536633,1725780639620,-220.642736,0.00014082,2]
[337536635,1725780639630,-220.642736,0.00014082,2]
[337536637,1725780639640,-151.0,0.00014082,2]
[337536639,1725780639650,-151.0,0.00014082,2]
[337536641,1725780639660,-240.204111,0.00014082,2]
[337536643,1725780639670,-151.0,0.00014082,2]
[337536645,1725780639680,-240.204111,0.00014082,2]
[337536647,1725780639690,-151.0,0.00014082,2]
[337536649,1725780639700,-156.797577,0.00014082,2]
[337536650,1725780639710,-506.545998,0.00014082,2]
[337536652,1725780639719,-151.0,0.00014082,2]
[337536654,1725780639729,-506.545998,0.00014082,2]
[337536656,1725780639738,-198.402458,0.00014082,2]
[337536658,1725780639748,-151.0,0.00014082,2]
[337536660,1725780639758,-198.402458,0.00014082,2]
[337536662,1725780639768,-151.0,0.00014082,2]
[337536664,1725780639777,-151.0,0.00014082,2]
[337536666,1725780639787,-156.225237,0.00014082,2]
[337536668,1725780639796,-151.0,0.00014082,2]
[337536686,1725780639961,-151.0,0.00014082,2]
[337536689,1725780639983,-232.284669,0.00014082,2]
[337536691,1725780639993,-232.284669,0.00014082,2]
[337536693,1725780640003,-151.0,0.00014082,2]
[337536695,1725780640013,-151.0,0.00014082,2]
[337536698,1725780640023,-151.0,0.00014082,2]
[337536700,1725780640032,-151.0,0.00014082,2]
[337536702,1725780640041,-2819.4627181,0.00014082,2]
[337536704,1725780640050,-152.0,0.00014105,4]
[337536705,1725780640059,-2819.4627181,0.00014137,2]
[337536707,1725780640069,-151.0,0.00014137,2]
[337536709,1725780640078,-151.0,0.00014137,2]
[337536711,1725780640087,-151.0,0.00014137,2]
[337536713,1725780640099,-229.524776,0.00014137,2]
[337536715,1725780640108,-151.0,0.00014137,2]
[337536717,1725780640117,-151.0,0.00014137,2]
[337536719,1725780640127,-5488.703912,0.00014137,2]
[337536721,1725780640137,-5488.703912,0.00014137,2]
[337536723,1725780640146,-225.105395,0.00014137,2]
[337536725,1725780640155,-151.0,0.00014137,2]
[337536727,1725780640164,-225.105395,0.00014137,2]
[337536729,1725780640174,-151.0,0.00014137,2]
[337536731,1725780640183,-151.0,0.00014137,2]
[337536733,1725780640192,-811.0,0.00014168,2]
[337536735,1725780640201,-931.0,0.00014168,2]
[337536737,1725780640210,-150.216,0.00014168,2]
[337536739,1725780640219,-557.0,0.00014168,2]
[337536741,1725780640227,-1984.1,0.00014168,2]
[337536743,1725780640237,-552.0,0.00014168,2]